[Event "Titled Tuesday Blitz March 01 Early 2022"]
[White "Cruz Ravina, Francisco Javier"]
[Black "Shuvalova, Polina"]
[WhiteFideId "2228939"]
[BlackFideId "24171760"]
[WhiteElo "2501"]
[BlackElo "2355"]
[Result "1/2-1/2"]
[Round "05"]
[TimeControl "180+1"]
[Date "2022.03.01"]
[WhiteClock "0:01:02"]
[BlackClock "0:00:41"]

1. Nf3 {[%clk 0:03:00]}  Nf6 {[%clk 0:02:58]} 2. g3 {[%clk 0:03:00]}  d5 {[%clk 0:02:57]} 3. Bg2 {[%clk 0:03:00]}  e6 {[%clk 0:02:52]} 4. O-O {[%clk 0:02:59]}  Be7 {[%clk 0:02:52]} 5. d3 {[%clk 0:03:00]}  c5 {[%clk 0:02:46]} 6. Nbd2 {[%clk 0:03:00]}  Nc6 {[%clk 0:02:46]} 7. e4 {[%clk 0:03:01]}  b6 {[%clk 0:02:46]} 8. Re1 {[%clk 0:03:00]}  Bb7 {[%clk 0:02:46]} 9. exd5 {[%clk 0:02:57]}  Nxd5 {[%clk 0:02:44]} 10. Ne4 {[%clk 0:02:57]}  O-O {[%clk 0:02:41]} 11. Bd2 {[%clk 0:02:56]}  Qd7 {[%clk 0:02:39]} 12. Nc3 {[%clk 0:02:52]}  Bf6 {[%clk 0:02:34]} 13. Nxd5 {[%clk 0:02:51]}  exd5 {[%clk 0:02:32]} 14. Bc3 {[%clk 0:02:48]}  d4 {[%clk 0:02:24]} 15. Bd2 {[%clk 0:02:47]}  Rfe8 {[%clk 0:02:23]} 16. Bg5 {[%clk 0:02:44]}  Bxg5 {[%clk 0:02:12]} 17. Nxg5 {[%clk 0:02:43]}  h6 {[%clk 0:02:09]} 18. Nf3 {[%clk 0:02:39]}  Rxe1+ {[%clk 0:02:04]} 19. Qxe1 {[%clk 0:02:37]}  Re8 {[%clk 0:02:05]} 20. Qd2 {[%clk 0:02:37]}  Nb4 {[%clk 0:01:59]} 21. a3 {[%clk 0:02:35]}  Nd5 {[%clk 0:01:51]} 22. Re1 {[%clk 0:02:33]}  Rxe1+ {[%clk 0:01:18]} 23. Qxe1 {[%clk 0:02:32]}  Qe7 {[%clk 0:01:18]} 24. Qxe7 {[%clk 0:02:24]}  Nxe7 {[%clk 0:01:18]} 25. Nd2 {[%clk 0:02:07]}  Bxg2 {[%clk 0:01:18]} 26. Kxg2 {[%clk 0:02:06]}  f5 {[%clk 0:01:15]} 27. Kf3 {[%clk 0:02:03]}  Kf7 {[%clk 0:01:15]} 28. Ke2 {[%clk 0:01:53]}  g5 {[%clk 0:01:15]} 29. Nc4 {[%clk 0:01:50]}  Ke6 {[%clk 0:01:14]} 30. a4 {[%clk 0:01:50]}  Kd5 {[%clk 0:01:11]} 31. b3 {[%clk 0:01:49]}  Nc6 {[%clk 0:01:11]} 32. Kd2 {[%clk 0:01:44]}  h5 {[%clk 0:01:10]} 33. h3 {[%clk 0:01:42]}  h4 {[%clk 0:01:05]} 34. gxh4 {[%clk 0:01:39]}  gxh4 {[%clk 0:01:06]} 35. f4 {[%clk 0:01:31]}  Ke6 {[%clk 0:01:03]} 36. Ke2 {[%clk 0:01:28]}  Nb4 {[%clk 0:01:02]} 37. Na3 {[%clk 0:01:21]}  Nd5 {[%clk 0:00:52]} 38. Kf3 {[%clk 0:01:20]}  Nb4 {[%clk 0:00:47]} 39. Ke2 {[%clk 0:01:14]}  Kd5 {[%clk 0:00:46]} 40. Kd2 {[%clk 0:01:06]}  Ke6 {[%clk 0:00:41]} 41. Ke2 {[%clk 0:01:02]} 1/2-1/2


[Site "https://www.chess.com"]

[Event "Titled Tuesday Blitz March 01 Early 2022"]
[White "Demchenko, Anton"]
[Black "Gabdrakhmanov, Azat"]
[WhiteFideId "4160258"]
[BlackFideId "34189197"]
[WhiteElo "2539"]
[BlackElo "2279"]
[Result "1/2-1/2"]
[Round "05"]
[TimeControl "180+1"]
[Date "2022.03.01"]
[WhiteClock "0:00:13"]
[BlackClock "0:00:11"]

1. e4 {[%clk 0:03:00]}  c5 {[%clk 0:02:51]} 2. Nf3 {[%clk 0:03:01]}  e6 {[%clk 0:02:51]} 3. d4 {[%clk 0:03:00]}  cxd4 {[%clk 0:02:52]} 4. Nxd4 {[%clk 0:03:01]}  a6 {[%clk 0:02:53]} 5. Bd3 {[%clk 0:03:00]}  Nf6 {[%clk 0:02:53]} 6. O-O {[%clk 0:02:59]}  d6 {[%clk 0:02:53]} 7. c4 {[%clk 0:02:58]}  Be7 {[%clk 0:02:53]} 8. Nc3 {[%clk 0:02:58]}  Qc7 {[%clk 0:02:53]} 9. Qe2 {[%clk 0:02:55]}  Nbd7 {[%clk 0:02:53]} 10. f4 {[%clk 0:02:48]}  O-O {[%clk 0:02:53]} 11. Bd2 {[%clk 0:02:39]}  Re8 {[%clk 0:02:52]} 12. Rae1 {[%clk 0:02:38]}  e5 {[%clk 0:02:52]} 13. Nf5 {[%clk 0:02:21]}  Bf8 {[%clk 0:02:50]} 14. Kh1 {[%clk 0:02:15]}  exf4 {[%clk 0:02:34]} 15. Bxf4 {[%clk 0:02:12]}  Ne5 {[%clk 0:02:02]} 16. Ne3 {[%clk 0:02:09]}  Be6 {[%clk 0:01:50]} 17. Bxe5 {[%clk 0:02:09]}  dxe5 {[%clk 0:01:49]} 18. Rxf6 {[%clk 0:02:10]}  gxf6 {[%clk 0:01:49]} 19. Ncd5 {[%clk 0:02:10]}  Qd8 {[%clk 0:01:42]} 20. Rf1 {[%clk 0:02:03]}  Bg7 {[%clk 0:01:36]} 21. Rf3 {[%clk 0:02:04]}  Bxd5 {[%clk 0:01:21]} 22. Nxd5 {[%clk 0:02:00]}  Re6 {[%clk 0:01:19]} 23. Rg3 {[%clk 0:01:59]}  Rc8 {[%clk 0:01:17]} 24. h3 {[%clk 0:01:54]}  b5 {[%clk 0:01:09]} 25. cxb5 {[%clk 0:01:48]}  axb5 {[%clk 0:01:09]} 26. Bxb5 {[%clk 0:01:48]}  f5 {[%clk 0:00:48]} 27. exf5 {[%clk 0:01:44]}  Qxd5 {[%clk 0:00:47]} 28. fxe6 {[%clk 0:01:43]}  Qxe6 {[%clk 0:00:48]} 29. b3 {[%clk 0:01:24]}  Rc1+ {[%clk 0:00:47]} 30. Kh2 {[%clk 0:01:23]}  Qb6 {[%clk 0:00:43]} 31. h4 {[%clk 0:00:39]}  f5 {[%clk 0:00:27]} 32. Bc4+ {[%clk 0:00:32]}  Kh8 {[%clk 0:00:27]} 33. Qe3 {[%clk 0:00:27]}  Qxe3 {[%clk 0:00:20]} 34. Rxe3 {[%clk 0:00:28]}  e4 {[%clk 0:00:20]} 35. g4 {[%clk 0:00:07]}  Be5+ {[%clk 0:00:12]} 36. Kg2 {[%clk 0:00:07]}  Rc2+ {[%clk 0:00:10]} 37. Kf1 {[%clk 0:00:07]}  Bd4 {[%clk 0:00:06]} 38. Re2 {[%clk 0:00:06]}  Rc1+ {[%clk 0:00:06]} 39. Re1 {[%clk 0:00:03]}  Rxe1+ {[%clk 0:00:03]} 40. Kxe1 {[%clk 0:00:04]}  fxg4 {[%clk 0:00:04]} 41. h5 {[%clk 0:00:04]}  g3 {[%clk 0:00:04]} 42. Kf1 {[%clk 0:00:05]}  Kg7 {[%clk 0:00:05]} 43. Kg2 {[%clk 0:00:05]}  Bf2 {[%clk 0:00:05]} 44. Bd5 {[%clk 0:00:05]}  Kf6 {[%clk 0:00:06]} 45. Bxe4 {[%clk 0:00:05]}  h6 {[%clk 0:00:06]} 46. a4 {[%clk 0:00:05]}  Kg5 {[%clk 0:00:07]} 47. Bf3 {[%clk 0:00:05]}  Kf4 {[%clk 0:00:07]} 48. b4 {[%clk 0:00:05]}  Ke5 {[%clk 0:00:08]} 49. b5 {[%clk 0:00:06]}  Kd6 {[%clk 0:00:08]} 50. a5 {[%clk 0:00:05]}  Kc7 {[%clk 0:00:07]} 51. b6+ {[%clk 0:00:04]}  Kb8 {[%clk 0:00:03]} 52. Be2 {[%clk 0:00:03]}  Kb7 {[%clk 0:00:03]} 53. Bc4 {[%clk 0:00:03]}  Be1 {[%clk 0:00:04]} 54. Bd3 {[%clk 0:00:03]}  Bxa5 {[%clk 0:00:03]} 55. Kxg3 {[%clk 0:00:04]}  Kxb6 {[%clk 0:00:04]} 56. Kg4 {[%clk 0:00:05]}  Bd2 {[%clk 0:00:05]} 57. Kf5 {[%clk 0:00:06]}  Bg5 {[%clk 0:00:06]} 58. Kg6 {[%clk 0:00:07]}  Kc5 {[%clk 0:00:06]} 59. Bf5 {[%clk 0:00:06]}  Kb4 {[%clk 0:00:07]} 60. Bg4 {[%clk 0:00:06]}  Kc3 {[%clk 0:00:08]} 61. Bf5 {[%clk 0:00:07]}  Kd4 {[%clk 0:00:05]} 62. Be6 {[%clk 0:00:08]}  Ke3 {[%clk 0:00:05]} 63. Bf7 {[%clk 0:00:09]}  Kf2 {[%clk 0:00:06]} 64. Bg8 {[%clk 0:00:10]}  Kg3 {[%clk 0:00:07]} 65. Bh7 {[%clk 0:00:10]}  Kh4 {[%clk 0:00:08]} 66. Bg8 {[%clk 0:00:11]}  Kg3 {[%clk 0:00:09]} 67. Bh7 {[%clk 0:00:12]}  Kh4 {[%clk 0:00:10]} 68. Bg8 {[%clk 0:00:13]}  Kg3 {[%clk 0:00:11]} 1/2-1/2


[Site "https://www.chess.com"]

[Event "Titled Tuesday Blitz March 01 Early 2022"]
[White "Djokic, Mihailo"]
[Black "Kukula, Pawel"]
[WhiteFideId "976440"]
[BlackFideId "1115081"]
[WhiteElo "2008"]
[BlackElo "2203"]
[Result "1-0"]
[Round "05"]
[TimeControl "180+1"]
[Date "2022.03.01"]
[WhiteClock "0:02:06"]
[BlackClock "0:00:32"]

1. e4 {[%clk 0:03:00]}  c5 {[%clk 0:02:55]} 2. Nf3 {[%clk 0:02:59]}  Nc6 {[%clk 0:02:55]} 3. d4 {[%clk 0:03:00]}  cxd4 {[%clk 0:02:55]} 4. Nxd4 {[%clk 0:03:01]}  Nf6 {[%clk 0:02:55]} 5. Nc3 {[%clk 0:03:02]}  e5 {[%clk 0:02:55]} 6. Ndb5 {[%clk 0:03:02]}  d6 {[%clk 0:02:56]} 7. Bg5 {[%clk 0:03:03]}  a6 {[%clk 0:02:56]} 8. Bxf6 {[%clk 0:03:03]}  gxf6 {[%clk 0:02:56]} 9. Na3 {[%clk 0:03:04]}  b5 {[%clk 0:02:56]} 10. Nd5 {[%clk 0:03:05]}  Bg7 {[%clk 0:02:56]} 11. c3 {[%clk 0:03:05]}  Ne7 {[%clk 0:02:56]} 12. Nxe7 {[%clk 0:03:05]}  Qxe7 {[%clk 0:02:57]} 13. Nc2 {[%clk 0:03:06]}  f5 {[%clk 0:02:53]} 14. a4 {[%clk 0:03:06]}  Rb8 {[%clk 0:02:52]} 15. axb5 {[%clk 0:03:06]}  axb5 {[%clk 0:02:53]} 16. exf5 {[%clk 0:03:05]}  Bxf5 {[%clk 0:02:50]} 17. Ne3 {[%clk 0:03:05]}  Be6 {[%clk 0:02:49]} 18. Bd3 {[%clk 0:03:05]}  O-O {[%clk 0:02:48]} 19. Qh5 {[%clk 0:03:04]}  h6 {[%clk 0:02:45]} 20. Nf5 {[%clk 0:03:02]}  Bxf5 {[%clk 0:02:21]} 21. Qxf5 {[%clk 0:03:03]}  Rfe8 {[%clk 0:02:14]} 22. Be4 {[%clk 0:03:02]}  b4 {[%clk 0:02:11]} 23. O-O {[%clk 0:03:00]}  bxc3 {[%clk 0:02:10]} 24. bxc3 {[%clk 0:03:01]}  Rbc8 {[%clk 0:01:38]} 25. Rac1 {[%clk 0:02:36]}  Qg5 {[%clk 0:01:28]} 26. Qf3 {[%clk 0:02:28]}  Rc4 {[%clk 0:01:22]} 27. g3 {[%clk 0:02:25]}  Rc5 {[%clk 0:01:03]} 28. c4 {[%clk 0:02:22]}  Qf6 {[%clk 0:00:54]} 29. Qd3 {[%clk 0:02:20]}  Rec8 {[%clk 0:00:51]} 30. Rfd1 {[%clk 0:02:18]}  Bf8 {[%clk 0:00:51]} 31. Bd5 {[%clk 0:02:18]}  Kg7 {[%clk 0:00:49]} 32. Qe4 {[%clk 0:02:17]}  Qg6 {[%clk 0:00:48]} 33. Qe2 {[%clk 0:02:16]}  f5 {[%clk 0:00:48]} 34. Rb1 {[%clk 0:02:14]}  R8c7 {[%clk 0:00:47]} 35. Rb8 {[%clk 0:02:13]}  e4 {[%clk 0:00:47]} 36. Qb2+ {[%clk 0:02:11]}  Qf6 {[%clk 0:00:32]} 37. Qxf6+ {[%clk 0:02:10]}  Kxf6 {[%clk 0:00:33]} 38. Rxf8+ {[%clk 0:02:10]}  Ke5 {[%clk 0:00:32]} 39. Re8+ {[%clk 0:02:06]} 1-0


[Site "https://www.chess.com"]

[Event "Titled Tuesday Blitz March 01 Early 2022"]
[White "Fus, Jakub"]
[Black "Sjugirov, Sanan"]
[WhiteFideId "1193023"]
[BlackFideId "4189302"]
[WhiteElo "2111"]
[BlackElo "2602"]
[Result "1/2-1/2"]
[Round "05"]
[TimeControl "180+1"]
[Date "2022.03.01"]
[WhiteClock "0:00:06"]
[BlackClock "0:00:18"]

1. e4 {[%clk 0:03:00]}  c5 {[%clk 0:02:59]} 2. Be2 {[%clk 0:02:59]}  Nc6 {[%clk 0:02:57]} 3. f4 {[%clk 0:02:59]}  e6 {[%clk 0:02:58]} 4. Nf3 {[%clk 0:02:58]}  d5 {[%clk 0:02:59]} 5. d3 {[%clk 0:02:59]}  Bd6 {[%clk 0:02:59]} 6. O-O {[%clk 0:02:57]}  Nge7 {[%clk 0:03:00]} 7. c3 {[%clk 0:02:56]}  O-O {[%clk 0:03:00]} 8. Na3 {[%clk 0:02:55]}  f6 {[%clk 0:03:00]} 9. Qe1 {[%clk 0:02:55]}  a6 {[%clk 0:02:59]} 10. Nc2 {[%clk 0:02:54]}  b5 {[%clk 0:02:59]} 11. a4 {[%clk 0:02:47]}  Rb8 {[%clk 0:02:58]} 12. axb5 {[%clk 0:02:46]}  axb5 {[%clk 0:02:59]} 13. b4 {[%clk 0:02:44]}  c4 {[%clk 0:02:59]} 14. dxc4 {[%clk 0:02:37]}  dxe4 {[%clk 0:02:58]} 15. Nd2 {[%clk 0:02:34]}  bxc4 {[%clk 0:02:48]} 16. Nxe4 {[%clk 0:02:32]}  Bc7 {[%clk 0:02:43]} 17. Bxc4 {[%clk 0:02:28]}  Nd5 {[%clk 0:02:44]} 18. Nc5 {[%clk 0:02:06]}  Bb6 {[%clk 0:02:44]} 19. Ne3 {[%clk 0:01:57]}  Bxc5 {[%clk 0:02:44]} 20. bxc5 {[%clk 0:01:58]}  Nde7 {[%clk 0:02:43]} 21. f5 {[%clk 0:01:47]}  Ne5 {[%clk 0:02:38]} 22. Bxe6+ {[%clk 0:01:44]}  Bxe6 {[%clk 0:02:38]} 23. fxe6 {[%clk 0:01:45]}  Qc8 {[%clk 0:02:39]} 24. Ba3 {[%clk 0:01:31]}  Qxe6 {[%clk 0:02:38]} 25. Qg3 {[%clk 0:01:28]}  Rb3 {[%clk 0:02:36]} 26. Bb4 {[%clk 0:01:26]}  N7c6 {[%clk 0:02:37]} 27. Rab1 {[%clk 0:01:20]}  Rxb1 {[%clk 0:02:29]} 28. Rxb1 {[%clk 0:01:19]}  Re8 {[%clk 0:02:28]} 29. Rf1 {[%clk 0:01:18]}  Ra8 {[%clk 0:01:33]} 30. Nf5 {[%clk 0:01:17]}  Ra7 {[%clk 0:01:33]} 31. Nd4 {[%clk 0:01:04]}  Qe7 {[%clk 0:01:16]} 32. Re1 {[%clk 0:00:53]}  Qd7 {[%clk 0:01:14]} 33. Nxc6 {[%clk 0:00:51]}  Nxc6 {[%clk 0:01:11]} 34. Qf4 {[%clk 0:00:40]}  Qd5 {[%clk 0:01:03]} 35. h3 {[%clk 0:00:29]}  h6 {[%clk 0:01:02]} 36. Qe4 {[%clk 0:00:28]}  Qxe4 {[%clk 0:00:58]} 37. Rxe4 {[%clk 0:00:29]}  Kf7 {[%clk 0:00:59]} 38. Kf2 {[%clk 0:00:29]}  h5 {[%clk 0:00:55]} 39. Ke3 {[%clk 0:00:27]}  Ra2 {[%clk 0:00:54]} 40. Kf3 {[%clk 0:00:26]}  Ne5+ {[%clk 0:00:53]} 41. Kg3 {[%clk 0:00:26]}  g5 {[%clk 0:00:51]} 42. h4 {[%clk 0:00:24]}  gxh4+ {[%clk 0:00:50]} 43. Rxh4 {[%clk 0:00:22]}  Kg6 {[%clk 0:00:48]} 44. Rd4 {[%clk 0:00:23]}  Kg5 {[%clk 0:00:45]} 45. Rd5 {[%clk 0:00:20]}  Kg6 {[%clk 0:00:37]} 46. Rd6 {[%clk 0:00:18]}  Ra8 {[%clk 0:00:34]} 47. c6 {[%clk 0:00:17]}  Rc8 {[%clk 0:00:34]} 48. Bc5 {[%clk 0:00:14]}  Nxc6 {[%clk 0:00:30]} 49. Bd4 {[%clk 0:00:14]}  Nxd4 {[%clk 0:00:30]} 50. cxd4 {[%clk 0:00:15]}  Kg5 {[%clk 0:00:28]} 51. Rd5+ {[%clk 0:00:14]}  f5 {[%clk 0:00:29]} 52. Rd7 {[%clk 0:00:14]}  Rc3+ {[%clk 0:00:29]} 53. Kh2 {[%clk 0:00:14]}  Rd3 {[%clk 0:00:29]} 54. d5 {[%clk 0:00:14]}  Rd2 {[%clk 0:00:29]} 55. d6 {[%clk 0:00:13]}  f4 {[%clk 0:00:30]} 56. Kh3 {[%clk 0:00:12]}  Rd3+ {[%clk 0:00:30]} 57. Kh2 {[%clk 0:00:13]}  Rd2 {[%clk 0:00:28]} 58. Kh3 {[%clk 0:00:13]}  Rd1 {[%clk 0:00:29]} 59. Kh2 {[%clk 0:00:12]}  Kh4 {[%clk 0:00:29]} 60. Rd8 {[%clk 0:00:09]}  Rd2 {[%clk 0:00:28]} 61. Kg1 {[%clk 0:00:10]}  f3 {[%clk 0:00:19]} 62. gxf3 {[%clk 0:00:09]}  Kg3 {[%clk 0:00:20]} 63. Rg8+ {[%clk 0:00:08]}  Kxf3 {[%clk 0:00:21]} 64. Rg6 {[%clk 0:00:08]}  h4 {[%clk 0:00:21]} 65. Rf6+ {[%clk 0:00:06]}  Kg3 {[%clk 0:00:21]} 66. Rg6+ {[%clk 0:00:07]}  Kh3 {[%clk 0:00:22]} 67. Rf6 {[%clk 0:00:06]}  Rd5 {[%clk 0:00:19]} 68. Rg6 {[%clk 0:00:06]}  Rg5+ {[%clk 0:00:18]} 69. Rxg5 {[%clk 0:00:06]} 1/2-1/2


[Site "https://www.chess.com"]

[Event "Titled Tuesday Blitz March 01 Early 2022"]
[White "Gerbelli Neto, Eduardo"]
[Black "Mikhalsky, Vladimir"]
[WhiteFideId "2103281"]
[BlackFideId "14144352"]
[WhiteElo "2178"]
[BlackElo "2248"]
[Result "0-1"]
[Round "05"]
[TimeControl "180+1"]
[Date "2022.03.01"]
[WhiteClock "0:00:25"]
[BlackClock "0:00:54"]

1. e4 {[%clk 0:02:58]}  g6 {[%clk 0:02:58]} 2. Nc3 {[%clk 0:02:57]}  Bg7 {[%clk 0:02:57]} 3. f4 {[%clk 0:02:58]}  c5 {[%clk 0:02:57]} 4. Nf3 {[%clk 0:02:58]}  Nc6 {[%clk 0:02:56]} 5. Bc4 {[%clk 0:02:59]}  e6 {[%clk 0:02:56]} 6. f5 {[%clk 0:02:57]}  gxf5 {[%clk 0:02:55]} 7. d3 {[%clk 0:02:57]}  h6 {[%clk 0:02:48]} 8. O-O {[%clk 0:02:53]}  Nge7 {[%clk 0:02:47]} 9. Qe1 {[%clk 0:02:53]}  b6 {[%clk 0:02:44]} 10. Nb5 {[%clk 0:02:24]}  d6 {[%clk 0:02:23]} 11. exf5 {[%clk 0:02:12]}  Nxf5 {[%clk 0:02:22]} 12. Bf4 {[%clk 0:01:58]}  a6 {[%clk 0:02:15]} 13. Nc3 {[%clk 0:01:56]}  O-O {[%clk 0:02:06]} 14. g4 {[%clk 0:01:40]}  Nfd4 {[%clk 0:02:02]} 15. Qg3 {[%clk 0:01:41]}  b5 {[%clk 0:01:43]} 16. Bb3 {[%clk 0:01:30]}  b4 {[%clk 0:01:42]} 17. Rf2 {[%clk 0:01:02]}  bxc3 {[%clk 0:01:39]} 18. bxc3 {[%clk 0:01:03]}  Nxf3+ {[%clk 0:01:38]} 19. Qxf3 {[%clk 0:01:00]}  Bb7 {[%clk 0:01:27]} 20. Raf1 {[%clk 0:00:40]}  Na5 {[%clk 0:01:17]} 21. Qe3 {[%clk 0:00:37]}  Nxb3 {[%clk 0:01:16]} 22. axb3 {[%clk 0:00:38]}  Qh4 {[%clk 0:01:06]} 23. Bxd6 {[%clk 0:00:26]}  Qxg4+ {[%clk 0:01:01]} 24. Bg3 {[%clk 0:00:25]}  Bxc3 {[%clk 0:00:54]} 0-1


[Site "https://www.chess.com"]

[Event "Titled Tuesday Blitz March 01 Early 2022"]
[White "Godzwon, Iwo"]
[Black "Mikhnenko, Alexander"]
[WhiteFideId "21802483"]
[BlackFideId "34143014"]
[WhiteElo "2201"]
[BlackElo "2140"]
[Result "1-0"]
[Round "05"]
[TimeControl "180+1"]
[Date "2022.03.01"]
[WhiteClock "0:01:34"]
[BlackClock "0:01:08"]

1. e4 {[%clk 0:03:00]}  c5 {[%clk 0:02:59]} 2. Nf3 {[%clk 0:02:59]}  e6 {[%clk 0:02:58]} 3. d4 {[%clk 0:02:59]}  cxd4 {[%clk 0:02:56]} 4. Nxd4 {[%clk 0:03:00]}  Nf6 {[%clk 0:02:56]} 5. Nc3 {[%clk 0:03:01]}  Nc6 {[%clk 0:02:56]} 6. Ndb5 {[%clk 0:03:01]}  Bc5 {[%clk 0:02:54]} 7. Bf4 {[%clk 0:03:00]}  O-O {[%clk 0:02:53]} 8. Bc7 {[%clk 0:03:00]}  Qe7 {[%clk 0:02:52]} 9. Bd6 {[%clk 0:03:01]}  Bxd6 {[%clk 0:02:53]} 10. Qxd6 {[%clk 0:03:01]}  Qd8 {[%clk 0:02:52]} 11. O-O-O {[%clk 0:02:59]}  a6 {[%clk 0:02:52]} 12. Nd4 {[%clk 0:02:59]}  Ne7 {[%clk 0:02:52]} 13. f3 {[%clk 0:02:48]}  b5 {[%clk 0:02:45]} 14. g4 {[%clk 0:02:47]}  Ne8 {[%clk 0:02:43]} 15. Qa3 {[%clk 0:02:44]}  Rb8 {[%clk 0:02:42]} 16. Qc5 {[%clk 0:02:35]}  d6 {[%clk 0:02:40]} 17. Qa7 {[%clk 0:02:31]}  Bb7 {[%clk 0:02:29]} 18. Nb3 {[%clk 0:02:30]}  Qc7 {[%clk 0:02:25]} 19. Kb1 {[%clk 0:02:19]}  Nc6 {[%clk 0:02:22]} 20. Qe3 {[%clk 0:02:18]}  Nf6 {[%clk 0:02:20]} 21. Ne2 {[%clk 0:02:08]}  a5 {[%clk 0:02:18]} 22. Ned4 {[%clk 0:02:00]}  Nxd4 {[%clk 0:02:18]} 23. Nxd4 {[%clk 0:02:00]}  Ba6 {[%clk 0:02:13]} 24. a4 {[%clk 0:01:51]}  d5 {[%clk 0:01:58]} 25. Bxb5 {[%clk 0:01:43]}  Bxb5 {[%clk 0:01:59]} 26. Nxb5 {[%clk 0:01:43]}  Qc4 {[%clk 0:01:45]} 27. b3 {[%clk 0:01:39]}  Qb4 {[%clk 0:01:41]} 28. g5 {[%clk 0:01:36]}  Nd7 {[%clk 0:01:34]} 29. exd5 {[%clk 0:01:36]}  Nc5 {[%clk 0:01:31]} 30. Rd4 {[%clk 0:01:35]}  Rxb5 {[%clk 0:01:08]} 31. Rxb4 {[%clk 0:01:34]} 1-0


[Site "https://www.chess.com"]

[Event "Titled Tuesday Blitz March 01 Early 2022"]
[White "Golubka, Petro"]
[Black "Zavivaeva, Emilia"]
[WhiteFideId "14114224"]
[BlackFideId "34127531"]
[WhiteElo "2392"]
[BlackElo "1685"]
[Result "1-0"]
[Round "05"]
[TimeControl "180+1"]
[Date "2022.03.01"]
[WhiteClock "0:01:21"]
[BlackClock "0:01:18"]

1. e4 {[%clk 0:02:51]}  e5 {[%clk 0:02:49]} 2. Bc4 {[%clk 0:02:41]}  Bc5 {[%clk 0:02:45]} 3. d3 {[%clk 0:02:35]}  d6 {[%clk 0:02:43]} 4. Nc3 {[%clk 0:02:25]}  Nc6 {[%clk 0:02:37]} 5. Be3 {[%clk 0:02:15]}  Bxe3 {[%clk 0:02:27]} 6. fxe3 {[%clk 0:02:16]}  Nf6 {[%clk 0:02:28]} 7. Qd2 {[%clk 0:01:57]}  O-O {[%clk 0:02:28]} 8. O-O-O {[%clk 0:01:52]}  Be6 {[%clk 0:02:27]} 9. Nf3 {[%clk 0:01:52]}  Bxc4 {[%clk 0:02:26]} 10. dxc4 {[%clk 0:01:53]}  Re8 {[%clk 0:02:24]} 11. b3 {[%clk 0:01:52]}  Qd7 {[%clk 0:02:19]} 12. Kb2 {[%clk 0:01:52]}  a6 {[%clk 0:02:12]} 13. a4 {[%clk 0:01:50]}  Qg4 {[%clk 0:01:55]} 14. h3 {[%clk 0:01:49]}  Qg6 {[%clk 0:01:51]} 15. Nh4 {[%clk 0:01:40]}  Qh6 {[%clk 0:01:45]} 16. Nf5 {[%clk 0:01:36]}  Qg5 {[%clk 0:01:41]} 17. g4 {[%clk 0:01:35]}  Ne7 {[%clk 0:01:26]} 18. h4 {[%clk 0:01:22]}  Qxg4 {[%clk 0:01:18]} 19. Nh6+ {[%clk 0:01:21]} 1-0


[Site "https://www.chess.com"]

[Event "Titled Tuesday Blitz March 01 Early 2022"]
[White "Guz, Ari"]
[Black "Kornyukov, Alexey"]
[WhiteFideId "2825759"]
[BlackFideId "4150457"]
[WhiteElo "1913"]
[BlackElo "2303"]
[Result "1-0"]
[Round "05"]
[TimeControl "180+1"]
[Date "2022.03.01"]
[WhiteClock "0:00:33"]
[BlackClock "0:00:55"]

1. Nf3 {[%clk 0:03:00]}  d5 {[%clk 0:02:52]} 2. e3 {[%clk 0:02:57]}  Nf6 {[%clk 0:02:49]} 3. b3 {[%clk 0:02:56]}  Nc6 {[%clk 0:02:50]} 4. Bb2 {[%clk 0:02:57]}  Bg4 {[%clk 0:02:49]} 5. Bb5 {[%clk 0:02:52]}  Qd6 {[%clk 0:02:46]} 6. h3 {[%clk 0:02:52]}  Bh5 {[%clk 0:02:45]} 7. g4 {[%clk 0:02:51]}  Bg6 {[%clk 0:02:43]} 8. Ne5 {[%clk 0:02:51]}  a6 {[%clk 0:02:39]} 9. Bxc6+ {[%clk 0:02:46]}  bxc6 {[%clk 0:02:38]} 10. d3 {[%clk 0:02:46]}  e6 {[%clk 0:02:35]} 11. f4 {[%clk 0:02:46]}  c5 {[%clk 0:02:33]} 12. Nd2 {[%clk 0:02:39]}  d4 {[%clk 0:02:32]} 13. Qf3 {[%clk 0:02:17]}  Nd5 {[%clk 0:02:24]} 14. Ndc4 {[%clk 0:02:17]}  Qd8 {[%clk 0:02:12]} 15. e4 {[%clk 0:02:15]}  Nb4 {[%clk 0:02:10]} 16. f5 {[%clk 0:02:08]}  Nxc2+ {[%clk 0:02:08]} 17. Kd2 {[%clk 0:02:08]}  Nxa1 {[%clk 0:02:06]} 18. fxg6 {[%clk 0:02:08]}  Nxb3+ {[%clk 0:02:02]} 19. axb3 {[%clk 0:02:07]}  Qf6 {[%clk 0:01:58]} 20. gxf7+ {[%clk 0:02:04]}  Ke7 {[%clk 0:01:55]} 21. Rf1 {[%clk 0:01:50]}  Qxf3 {[%clk 0:01:52]} 22. Rxf3 {[%clk 0:01:49]}  g6 {[%clk 0:01:51]} 23. Ba3 {[%clk 0:01:46]}  Kd8 {[%clk 0:01:48]} 24. Rf6 {[%clk 0:01:42]}  Be7 {[%clk 0:01:44]} 25. Rxe6 {[%clk 0:01:42]}  Rb8 {[%clk 0:01:36]} 26. Kc2 {[%clk 0:00:55]}  Rb5 {[%clk 0:01:28]} 27. Nc6+ {[%clk 0:00:53]}  Kd7 {[%clk 0:01:23]} 28. Rxe7+ {[%clk 0:00:42]}  Kxc6 {[%clk 0:01:23]} 29. e5 {[%clk 0:00:34]}  Rbb8 {[%clk 0:01:20]} 30. e6 {[%clk 0:00:33]}  Rhf8 {[%clk 0:01:11]} 31. Rd7 {[%clk 0:00:33]}  Rbc8 {[%clk 0:00:57]} 32. Ne5+ {[%clk 0:00:33]}  Kb5 {[%clk 0:00:55]} 33. e7 {[%clk 0:00:33]} 1-0


[Site "https://www.chess.com"]

[Event "Titled Tuesday Blitz March 01 Early 2022"]
[White "Dronavalli, Harika"]
[Black "Bilych, Olexiy"]
[WhiteFideId "5015197"]
[BlackFideId "14156504"]
[WhiteElo "2382"]
[BlackElo "2195"]
[Result "0-1"]
[Round "05"]
[TimeControl "180+1"]
[Date "2022.03.01"]
[WhiteClock "0:00:05"]
[BlackClock "0:01:30"]

1. d4 {[%clk 0:02:59]}  Nf6 {[%clk 0:02:59]} 2. c4 {[%clk 0:02:59]}  g6 {[%clk 0:03:00]} 3. g3 {[%clk 0:02:56]}  Bg7 {[%clk 0:02:59]} 4. Bg2 {[%clk 0:02:56]}  O-O {[%clk 0:03:00]} 5. Nc3 {[%clk 0:02:55]}  d6 {[%clk 0:02:59]} 6. Nf3 {[%clk 0:02:56]}  Nc6 {[%clk 0:02:59]} 7. O-O {[%clk 0:02:55]}  e5 {[%clk 0:02:59]} 8. dxe5 {[%clk 0:02:48]}  dxe5 {[%clk 0:03:00]} 9. Bg5 {[%clk 0:02:48]}  Be6 {[%clk 0:02:57]} 10. Qa4 {[%clk 0:02:43]}  Qc8 {[%clk 0:02:56]} 11. Rfd1 {[%clk 0:02:33]}  Nd7 {[%clk 0:02:53]} 12. Nd5 {[%clk 0:02:27]}  Nb6 {[%clk 0:02:47]} 13. Qb3 {[%clk 0:01:46]}  e4 {[%clk 0:02:45]} 14. Ne1 {[%clk 0:01:38]}  Bxd5 {[%clk 0:02:39]} 15. cxd5 {[%clk 0:01:38]}  Nd4 {[%clk 0:02:40]} 16. Qe3 {[%clk 0:01:33]}  Nc4 {[%clk 0:02:36]} 17. Qxe4 {[%clk 0:01:11]}  Re8 {[%clk 0:02:36]} 18. Qh4 {[%clk 0:01:02]}  Nxe2+ {[%clk 0:02:25]} 19. Kf1 {[%clk 0:00:46]}  Nxb2 {[%clk 0:02:09]} 20. Rd2 {[%clk 0:00:19]}  Qf5 {[%clk 0:02:09]} 21. Bh3 {[%clk 0:00:13]}  Qe5 {[%clk 0:02:08]} 22. Rb1 {[%clk 0:00:11]}  Nc4 {[%clk 0:02:06]} 23. Qxc4 {[%clk 0:00:11]}  Nc3 {[%clk 0:02:01]} 24. Rxb7 {[%clk 0:00:07]}  Qxe1+ {[%clk 0:02:00]} 25. Kg2 {[%clk 0:00:08]}  Re4 {[%clk 0:01:42]} 26. Qxc7 {[%clk 0:00:07]}  Rf8 {[%clk 0:01:42]} 27. Be7 {[%clk 0:00:08]}  Qxd2 {[%clk 0:01:31]} 28. Bxf8 {[%clk 0:00:08]}  Qxd5 {[%clk 0:01:31]} 29. Bxg7 {[%clk 0:00:08]}  Re7+ {[%clk 0:01:31]} 30. Kg1 {[%clk 0:00:05]}  Re1+ {[%clk 0:01:29]} 31. Bf1 {[%clk 0:00:05]}  Ne2# {[%clk 0:01:30]} 0-1


[Site "https://www.chess.com"]